Cogmind - Beta 13 @@@ ROGUE MODE // 2024.04.30 @ 17:02:43 Player: TinyBoulder Result: Destroyed by H-81 Overseer with Heavy Linear Accelerator Performance ------------- Evolutions (9) 4500 Regions Visited (17) 3400 Robots Destroyed (87) 435 Value Destroyed (3335) 3335 Prototype IDs (24) 480 Alien Tech Used (2) 400 Bonus (3089) 3089 TOTAL SCORE: 15639 Bonus ------- High Alert Combat Kills 259 Met Zhirov 300 Found Hidden Lab 3000 Friendly Fire -470 Cogmind --------- Core Integrity 0/1600 Matter 9/300 Energy 98/100 System Corruption 6% Temperature Cool (0) Movement Core (50) Location -1/Access Parts ------- > --- POWER (2) -------- (None) > --- PROPULSION (8) --- (None) > --- UTILITY (10) ----- (None) > --- WEAPON (5) ------- (None) > --- INVENTORY (5) ---- Light Antimatter Reactor Advanced Cooling System HERF Cannon Linear Accelerator Peak State ------------ > --- POWER ------------ F-cell Engine F-cell Engine > --- PROPULSION ------- Cooled Aerolev Unit Cooled Aerolev Unit Cooled Aerolev Unit Cooled Aerolev Unit Cooled Gravmag System Cooled Gravmag System Cooled Gravmag System > --- UTILITY ---------- Small Storage Unit Advanced Visual Processing Unit Advanced Signal Interpreter Advanced Target Analyzer Recoil Nullifier Advanced Weapon Cycler Advanced Thermal Shield Advanced System Shield > --- WEAPON ----------- Antimatter Cannon Antimatter Cannon Antimatter Cannon Linear Accelerator > --- INVENTORY -------- Advanced Cooling System Large Matter Pod Advanced Thermal Defense Suite Long-range Tractor Beam Transdimensional Reconstructor Hypervelocity Railgun Missile Launcher [Rating: 130] Favorites ----------- Power F-cell Engine Engine F-cell Engine Power Core Nuclear Core Reactor Light Quantum Reactor Propulsion Cooled Aerolev Unit Treads Light Treads Hover Unit Cooled Aerolev Unit Flight Unit Impulse Thruster Array Utility Advanced Visual Processing Unit Device Advanced Thermal Defense Suite Storage Small Storage Unit Processor Advanced Visual Processing Unit Hackware Advanced System Shield Protection Light Armor Plating Weapon Antimatter Cannon Energy Cannon Beam Cannon Ballistic Gun Shotgun Ballistic Cannon Antimatter Cannon Launcher Missile Launcher Build | -11 -10 -9 -9 -8 -7 -6 -5 -5 -5 -5 -4 -4 -3 -3 -3 -2 -1 ------- Run | Yrd Mat Mat Min Mat Fac Fac Fac Upp Upp Zhi Pro Fac Res Arm Lab Res Acc Slots Evolved 18 | . . 2 . 2 2 2 2 . . . . 2 2 . . 2 2 Power 1 | . . . . . . . . . . . . . 1 . . . . Propulsion 6 | . . . . . 1 1 1 . . . . 1 1 . . . 1 Utility 8 | . . 1 . 1 1 1 1 . . . . 1 . . . 2 . Weapon 3 | . . 1 . 1 . . . . . . . . . . . . 1 Parts Attached 88 | 6 3 5 3 6 19 2 2 1 2 9 . 10 4 9 2 2 3 Power 6 | 1 . . 1 1 1 . . . . . . . 1 1 . . . Engine 4 | 1 . . 1 . 1 . . . . . . . 1 . . . . Core 1 | . . . . 1 . . . . . . . . . . . . . Reactor 1 | . . . . . . . . . . . . . . 1 . . . Propulsion 19 | 2 . . . . 6 1 1 . . 3 . 1 1 . . 2 2 Treads 6 | 2 . . . . 3 . . . . . . . . . . . 1 Leg . | . . . . . . . . . . . . . . . . . . Wheel . | . . . . . . . . . . . . . . . . . . Hover 12 | . . . . . 3 1 1 . . 3 . 1 1 . . 2 . Flight 1 | . . . . . . . . . . . . . . . . . 1 Utility 30 | 1 2 . 2 2 5 1 1 1 . 2 . 5 1 5 1 . 1 Device 16 | . . . . . 2 . 1 1 . 1 . 4 1 5 . . 1 Storage 5 | 1 1 . 2 . 1 . . . . . . . . . . . . Processor 4 | . 1 . . . 1 1 . . . . . 1 . . . . . Hackware 2 | . . . . . . . . . . 1 . . . . 1 . . Protection 3 | . . . . 2 1 . . . . . . . . . . . . Artifact . | . . . . . . . . . . . . . . . . . . Weapon 33 | 2 1 5 . 3 7 . . . 2 4 . 4 1 3 1 . . Energy Gun . | . . . . . . . . . . . . . . . . . . Energy Cannon 2 | . 1 . . . . . . . . . . . . . 1 . . Ballistic Gun 6 | 2 . 3 . . . . . . . . . . . 1 . . . Ballistic Cannon 18 | . . 2 . 3 5 . . . 1 4 . 2 1 . . . . Launcher 7 | . . . . . 2 . . . 1 . . 2 . 2 . . . Special Weapon . | . . . . . . . . . . . . . . . . . . Impact Weapon . | . . . . . . . . . . . . . . . . . . Slashing Weapon . | . . . . . . . . . . . . . . . . . . Piercing Weapon . | . . . . . . . . . . . . . . . . . . Special Melee Weapon . | . . . . . . . . . . . . . . . . . . Unidentified Prototypes 10 | . . . . . 5 . . . . 2 . . . 1 2 . . Parts Lost 27 | . . . 1 . . . . . 1 . . . 1 17 . 2 5 Power 1 | . . . 1 . . . . . . . . . . . . . . Propulsion 11 | . . . . . . . . . . . . . . 7 . 1 3 Utility 11 | . . . . . . . . . 1 . . . 1 6 . 1 2 Weapon 4 | . . . . . . . . . . . . . . 4 . . . Highest Loss Streak 8 | . . . 1 . . . . . 1 . . . 1 8 . 1 2 To Critical Strikes . | . . . . . . . . . . . . . . . . . . Average Slot Usage (%) 90 | . 97 88 97 97 98 99 99 100 97 75 100 98 99 81 10 15 7 Engine 5 | . 14 11 10 4 . 6 5 5 5 5 5 5 9 5 . . . Core 1 | . . . . 4 6 . . . . . . . . . . . . Treads 8 | . 28 22 22 18 19 . . . . . . . . . . . . Hover 15 | . . . . . 3 26 29 29 29 29 29 31 33 27 . 2 1 Device 9 | . . . . . 6 13 16 22 20 17 17 16 13 14 4 4 1 Storage 10 | . 14 11 19 18 15 13 11 5 5 5 5 5 4 3 . . . Processor 10 | . 11 11 11 9 7 12 11 11 11 11 11 13 14 9 4 4 2 Protection 1 | . . . . 7 6 . . . . . . . . . . . . Energy Cannon 3 | . 8 11 11 9 5 . . . . . . . . . . . . Ballistic Gun 3 | . 19 12 22 1 . . . . . . . . . 1 . . . Ballistic Cannon 17 | . . 9 . 25 24 26 23 23 22 2 23 19 18 9 . . . Naked Turns 19 | . . . . . . . . . . . . . . . . . 19 Heaviest Build 77 | 14 30 36 37 48 62 61 63 63 61 60 60 60 70 77 1 1 3 Greatest Support 100 | 40 40 40 40 40 76 36 45 45 61 51 70 60 100 100 3 14 16 Greatest Overweight (x) 5 | 1 . . . 1 5 1 1 1 1 1 1 . 1 1 . . . Average Overweight (x) . | . . . . . . 1 1 1 . . . . . . . . . Largest Inventory Capacity 15 | 8 15 15 15 15 15 8 8 8 8 8 8 8 8 8 5 5 5 Average Capacity 10 | 6 14 15 15 15 13 8 8 8 8 8 8 8 8 7 5 5 5 Most Carried 15 | 1 3 10 12 14 15 7 8 8 8 8 8 8 8 8 5 5 5 Average Carried 8 | . 2 6 10 12 12 7 7 8 8 8 7 7 6 7 5 4 4 Final Capacity 15 | 8 15 15 15 15 8 8 8 8 8 8 8 8 8 5 5 5 5 Final Carried 14 | 1 3 10 11 14 8 7 8 8 8 8 8 8 8 5 5 5 4 Class Distribution -------------------- 29% | Gunner 21% | Tank 17% | Skirmisher 15% | Mutant 8% | Sprinter 5% | Scout Dominant Class ---------------- Mutant | -10/Materials Skirmisher | -9/Materials Skirmisher | -9/Mines Tank | -8/Materials Tank | -7/Factory Gunner | -6/Factory Gunner | -5/Factory Gunner | -5/Upper Caves Gunner | -5/Upper Caves Mutant | -5/Zhirov Skirmisher | -4/Proximity Caves Scout | -4/Factory Gunner | -3/Research Sprinter | -3/Armory Hacker-Mutant | -3/Lab Hacker-Mutant | -2/Research Mutant | -1/Access Resources | -11 -10 -9 -9 -8 -7 -6 -5 -5 -5 -5 -4 -4 -3 -3 -3 -2 -1 ----------- Run | Yrd Mat Mat Min Mat Fac Fac Fac Upp Upp Zhi Pro Fac Res Arm Lab Res Acc Matter Collected 3407 | 220 50 96 109 202 353 276 298 34 149 . 309 789 139 375 . . 8 Remotely 760 | . . . . . . . . . . . . 610 109 41 . . . Salvage Created 1843 | . 16 205 34 249 141 141 276 21 111 . 80 270 75 224 . . . Parts 133 | . 3 14 3 23 10 12 8 1 6 . 10 22 2 19 . . . Haulers Intercepted 3 | . . 2 . . . . . . . . . 1 . . . . . Recyclers Shooed . | . . . . . . . . . . . . . . . . . . Parts Field Recycled . | . . . . . . . . . . . . . . . . . . Retrieved Matter . | . . . . . . . . . . . . . . . . . . Parts Self-Destructed 15 | . . . . . . . . 1 4 . 10 . . . . . . Prevented . | . . . . . . . . . . . . . . . . . . Kills | -11 -10 -9 -9 -8 -7 -6 -5 -5 -5 -5 -4 -4 -3 -3 -3 -2 -1 ------- Run | Yrd Mat Mat Min Mat Fac Fac Fac Upp Upp Zhi Pro Fac Res Arm Lab Res Acc Combat Hostiles Destroyed 76 | . . 2 4 8 4 6 6 1 7 . 9 14 3 12 . . . Melee 1 | . . . . . . . . . . . . . . 1 . . . Guns 4 | . . . 4 . . . . . . . . . . . . . . Cannons 51 | . . 2 . 8 4 6 5 1 3 . 9 6 3 4 . . . AOE 20 | . . . . . . . 1 . 4 . . 8 . 7 . . . Classes Destroyed 17 | . 1 3 2 2 5 . . . 1 . 1 . 1 1 . . . Worker 3 | . . . . . 1 . 1 . . . . 1 . . . . . Builder 1 | . . . . . . . . . . . . . 1 . . . . Hauler 3 | . . 2 . . . . . . . . . 1 . . . . . Recycler 1 | . . 1 . . . . . . . . . . . . . . . Operator 1 | . . . . 1 . . . . . . . . . . . . . Drone 2 | . . . . . . . . . . . 2 . . . . . . Watcher 2 | . 1 . . . . . . . . . . 1 . . . . . Swarmer 37 | . . . 3 3 . 4 . . 5 . 7 10 . 5 . . . Cutter 4 | . . . . . . . . . . . . . . 4 . . . Grunt 11 | . . 2 . 2 . 1 4 1 . . . . 1 . . . . Protector 1 | . . . . . 1 . . . . . . . . . . . . Sentry 6 | . . . . 3 . . 1 . . . . 1 . 1 . . . Demolisher 1 | . . . 1 . . . . . . . . . . . . . . Specialist 1 | . . . . . 1 . . . . . . . . . . . . Hunter 6 | . . . . . 1 . 1 . . . . . 2 2 . . . Programmer 5 | . . . . . 1 1 . . . . . 3 . . . . . Savage 2 | . . . . . . . . . 2 . . . . . . . . Best Kill Streak 7 | . 1 5 3 3 3 3 4 1 5 . 4 7 2 4 . . . Combat Bots Only 6 | . . 2 3 3 2 3 3 1 5 . 4 6 2 4 . . . Max Kills in Single Turn 5 | . 1 1 1 1 2 1 2 1 3 . 1 5 1 2 . . . Gunslinging . | . . . . . . . . . . . . . . . . . . Exploded 4 | . . . . . . . 1 . 3 . . 4 . 2 . . . Melee 1 | . . . . . . . . . . . . . . 1 . . . Uniques/NPCs Destroyed . | . . . . . . . . . . . . . . . . . . Combat | -11 -10 -9 -9 -8 -7 -6 -5 -5 -5 -5 -4 -4 -3 -3 -3 -2 -1 -------- Run | Yrd Mat Mat Min Mat Fac Fac Fac Upp Upp Zhi Pro Fac Res Arm Lab Res Acc Hostile Shots Fired 642 | . . . 14 13 26 9 24 2 6 . 51 29 35 167 21 43 202 Missed 290 | . . . 1 2 13 2 6 1 1 . 15 15 20 84 10 20 100 Damage Taken 7786 | . . . 345 106 310 99 375 20 92 . 521 228 237 1944 276 577 2656 Core 3317 | . . . 48 10 27 . 79 . 20 . 65 30 11 656 251 438 1682 Absorbed by Shields 260 | . . . . . . 8 . . . . . . . 252 . . . Ignored by Resistances 139 | . . . . . . . 43 . . . . 6 54 18 . . 18 Regen/Repaired (Parts) 205 | . . . . . . . . . . . . 205 . . . . . Core Remaining (%) 85 | 100 100 . 88 98 96 100 . . . . 83 97 . . 26 69 . Volleys Fired 143 | . 1 6 7 11 10 11 11 2 10 . 14 21 13 26 . . . Largest 4 | . 2 3 3 4 4 4 4 4 4 . 4 4 4 4 . . . Hottest 186 | . 40 138 106 177 177 160 160 160 160 . 160 160 186 186 . . . Shots Fired 463 | . 2 18 21 42 40 44 45 5 33 . 52 54 40 67 . . . Gun 26 | . 2 . 14 . . . . . . . . . . 10 . . . Cannon 427 | . . 18 7 42 39 44 45 5 31 . 52 51 40 53 . . . Launcher 10 | . . . . . 1 . . . 2 . . 3 . 4 . . . Special . | . . . . . . . . . . . . . . . . . . Kinetic 428 | . 2 12 14 33 36 44 45 5 31 . 52 51 40 63 . . . Thermal 25 | . . 6 7 9 3 . . . . . . . . . . . . Explosive 10 | . . . . . 1 . . . 2 . . 3 . 4 . . . Electromagnetic . | . . . . . . . . . . . . . . . . . . Robot Hit Streak 9 | . 1 5 3 3 5 4 8 6 6 . 6 8 7 9 . . . Robot Miss Streak 6 | . . 2 2 3 5 5 2 . 2 . 6 2 2 3 . . . Penetration Max . | . . . . . . . . . . . . . . . . . . Secondary Targets . | . . . . . . . . . . . . . . . . . . Shots Hit Robots 195 | . 1 8 14 16 15 15 20 3 17 . 14 25 17 30 . . . Core Hits 128 | . 1 5 5 13 16 7 10 1 13 . 9 21 10 17 . . . Critical Kills . | . . . . . . . . . . . . . . . . . . Critical Parts Destroyed 2 | . . . . . . . . . . . . . . 2 . . . Critical Strikes 33 | . . . . . 1 4 3 2 2 . 3 5 6 7 . . . Destroy 2 | . . . . . . . . . . . . . . 2 . . . Blast 31 | . . . . . 1 4 3 2 2 . 3 5 6 5 . . . Melee Attacks . | . . . . . . . . . . . . . . . . . . Impact . | . . . . . . . . . . . . . . . . . . Slashing . | . . . . . . . . . . . . . . . . . . Piercing . | . . . . . . . . . . . . . . . . . . Sneak Attacks . | . . . . . . . . . . . . . . . . . . Combat Hostiles . | . . . . . . . . . . . . . . . . . . Follow-up Attacks . | . . . . . . . . . . . . . . . . . . Damage Inflicted 8874 | . 15 163 207 434 574 657 958 102 960 . 574 1678 866 1673 . . 13 Guns 187 | . 15 . 136 . . . . . . . . . . 36 . . . Cannons 6516 | . . 163 71 434 409 657 768 102 649 . 574 985 866 838 . . . Explosions 2019 | . . . . . 165 . 190 . 311 . . 693 . 660 . . . Melee . | . . . . . . . . . . . . . . . . . . Ramming 152 | . . . . . . . . . . . . . . 139 . . 13 Kinetic 6497 | . 15 111 136 364 396 657 768 102 649 . 574 985 866 874 . . . Thermal 396 | . . 52 71 70 13 . 190 . . . . . . . . . . Explosive 1829 | . . . . . 165 . . . 311 . . 693 . 660 . . . Electromagnetic . | . . . . . . . . . . . . . . . . . . Impact . | . . . . . . . . . . . . . . . . . . Slashing . | . . . . . . . . . . . . . . . . . . Piercing . | . . . . . . . . . . . . . . . . . . Highest Corruption 8 | . . . . . . . 1 1 1 1 1 1 . 7 8 . 6 Average Corruption 2 | . . . . . . . 1 1 1 1 1 1 . 6 7 . 5 Corruption Purged . | . . . . . . . . . . . . . . . . . . Corruption Blocked . | . . . . . . . . . . . . . . . . . . Effects 23 | . . . . . . . 1 2 4 . 1 1 . 3 3 . 8 Message Errors 8 | . . . . . . . . . 1 . . 1 . 2 1 . 3 Matter Fused 5 | . . . . . . . . . 1 . . . . . 2 . 2 Energy Discharges 4 | . . . . . . . . . 2 . . . . 1 . . 1 Parts Rejected 1 | . . . . . . . . . . . . . . . . . 1 Data Loss (minor) 3 | . . . . . . . . 1 . . 1 . . . . . 1 Data Loss (major) 1 | . . . . . . . . 1 . . . . . . . . . Misfires 1 | . . . . . . . 1 . . . . . . . . . . Overload Shots . | . . . . . . . . . . . . . . . . . . Overflow Damage 223 | . . . . 1 . 52 6 . 9 . 30 4 21 100 . . . Projectiles 122 | . . . . 1 . 52 6 . 9 . 30 3 21 . . . . Explosions 73 | . . . . . . . . . . . . 1 . 72 . . . Melee 28 | . . . . . . . . . . . . . . 28 . . . Knockbacks 31 | . . . . 2 3 2 9 . . . 4 6 3 2 . . . Impact . | . . . . . . . . . . . . . . . . . . Kinetic 31 | . . . . 2 3 2 9 . . . 4 6 3 2 . . . Secondary . | . . . . . . . . . . . . . . . . . . Self-Inflicted Damage 162 | . . . . . . . . . . . . . . 156 . . 6 Shots 3 | . . . . . . . . . . . . . . 3 . . . Rammed 7 | . . . . . . . . . . . . . . 3 . . 4 Targets Rammed 7 | . . . . . . . . . . . . . . 3 . . 4 Kicked . | . . . . . . . . . . . . . . . . . . Crushed . | . . . . . . . . . . . . . . . . . . Highest Temperature 440 | . . 184 121 321 267 186 228 . . . . 126 238 440 . . . Average Temperature 98 | . . 64 51 120 107 78 98 . . . . 42 102 148 . . . Received Heat Transfer 630 | . . . . 18 45 9 207 9 27 . . 9 12 159 . 81 54 Effects 4 | . . . . . . . . . . . . . . 4 . . . Interference 2 | . . . . . . . . . . . . . . 2 . . . Matter Decay 2 | . . . . . . . . . . . . . . 2 . . . Siege Activations . | . . . . . . . . . . . . . . . . . . Robots Corrupted . | . . . . . . . . . . . . . . . . . . Combat Hostiles . | . . . . . . . . . . . . . . . . . . Parts Fried . | . . . . . . . . . . . . . . . . . . Impact Corruptions 1 | . . . . . . . . . . . . . . 1 . . . Robots Melted . | . . . . . . . . . . . . . . . . . . Combat Hostiles . | . . . . . . . . . . . . . . . . . . Parts Melted 2 | . . . 1 . . . 1 . . . . . . . . . . Heat Transferred 500 | . . 111 148 148 19 . 74 . . . . . . . . . . Parts Sabotaged . | . . . . . . . . . . . . . . . . . . Parts Stolen . | . . . . . . . . . . . . . . . . . . Parts Stripped . | . . . . . . . . . . . . . . . . . . Power Chain Reactions . | . . . . . . . . . . . . . . . . . . Alert | -11 -10 -9 -9 -8 -7 -6 -5 -5 -5 -5 -4 -4 -3 -3 -3 -2 -1 ------- Run | Yrd Mat Mat Min Mat Fac Fac Fac Upp Upp Zhi Pro Fac Res Arm Lab Res Acc Peak Influence 1125 | . 47 107 75 270 104 151 615 . . . . 564 364 1125 . 104 604 Initial 266 | . . . 5 7 46 50 71 . . . . 266 148 191 . . 56 Average 182 | . 29 47 60 136 50 60 357 . . . . 454 223 604 . 46 295 Maximum Alert Level 4 | . . . . 1 . . 2 . . . . 2 1 4 . . 2 Low Security (%) 67 | 100 100 100 100 79 100 100 6 . . . . . 33 3 . 100 37 Level 1 14 | . . . . 20 . . 60 . . . . 24 66 17 . . 21 Level 2 15 | . . . . . . . 32 . . . . 75 . 48 . . 40 Level 3 2 | . . . . . . . . . . . . . . 28 . . . Level 4 . | . . . . . . . . . . . . . . 2 . . . Level 5 . | . . . . . . . . . . . . . . . . . . High Security . | . . . . . . . . . . . . . . . . . . Max Security . | . . . . . . . . . . . . . . . . . . Squads Dispatched 33 | . . 1 . 6 4 4 2 . . . . 2 4 6 . . 4 Investigation 10 | . . 1 . . 1 1 2 . . . . 1 . 1 . . 3 Extermination 3 | . . . . . . 2 . . . . . 1 . . . . . Reinforcement 15 | . . . . 3 3 . . . . . . . 3 5 . . 1 Assault . | . . . . . . . . . . . . . . . . . . Garrison 5 | . . . . 3 . 1 . . . . . . 1 . . . . Intercept . | . . . . . . . . . . . . . . . . . . Searches Triggered 1 | . . . . . . . . . . . . . . . . . 1 Construction Impeded . | . . . . . . . . . . . . . . . . . . Haulers Reinforced 1 | . . . . . . . . . . . . . 1 . . . . Active Scanning Responses . | . . . . . . . . . . . . . . . . . . Cargo Convoy Interrupts 1 | . . . . . 1 . . . . . . . . . . . . Stealth | -11 -10 -9 -9 -8 -7 -6 -5 -5 -5 -5 -4 -4 -3 -3 -3 -2 -1 --------- Run | Yrd Mat Mat Min Mat Fac Fac Fac Upp Upp Zhi Pro Fac Res Arm Lab Res Acc Distress Signals 16 | . . 1 . 1 1 1 3 . . . . . 1 5 . 1 2 Communications Jammed . | . . . . . . . . . . . . . . . . . . Distress Signals . | . . . . . . . . . . . . . . . . . . Times Spotted 268 | . 3 7 5 11 28 23 17 1 9 . 11 16 17 67 1 10 42 Peak Tracking Total 20 | . 2 4 3 3 9 4 4 1 4 . 6 7 12 20 1 8 15 Tactical Retreats 27 | . . 1 . . . 1 2 . 1 . 1 . 1 10 . 2 8 Traps | -11 -10 -9 -9 -8 -7 -6 -5 -5 -5 -5 -4 -4 -3 -3 -3 -2 -1 ------- Run | Yrd Mat Mat Min Mat Fac Fac Fac Upp Upp Zhi Pro Fac Res Arm Lab Res Acc Traps Triggered 7 | . . . . . 1 1 . . . . . 1 . 4 . . . Indirectly . | . . . . . . . . . . . . . . . . . . Trap Hack Attempts . | . . . . . . . . . . . . . . . . . . Triggered . | . . . . . . . . . . . . . . . . . . Disarmed . | . . . . . . . . . . . . . . . . . . Reprogrammed . | . . . . . . . . . . . . . . . . . . Reused . | . . . . . . . . . . . . . . . . . . Traps Extracted . | . . . . . . . . . . . . . . . . . . Installed . | . . . . . . . . . . . . . . . . . . Triggered . | . . . . . . . . . . . . . . . . . . Machines | -11 -10 -9 -9 -8 -7 -6 -5 -5 -5 -5 -4 -4 -3 -3 -3 -2 -1 ---------- Run | Yrd Mat Mat Min Mat Fac Fac Fac Upp Upp Zhi Pro Fac Res Arm Lab Res Acc Machines Disabled 22 | . . . . 1 . 5 7 . . . . 2 1 6 . . . Max in Single Turn 4 | . . . . 1 . 1 4 . . . . 1 1 1 . . . Garrison Access 2 | . . . . . . . 1 . . . . 1 . . . . . Energy Cycler 1 | . . . . . . . . . . . . . . 1 . . . Machines Repaired . | . . . . . . . . . . . . . . . . . . Machines Dismantled . | . . . . . . . . . . . . . . . . . . Machines Sabotaged . | . . . . . . . . . . . . . . . . . . Overloaded Fab Kills . | . . . . . . . . . . . . . . . . . . Hacking | -11 -10 -9 -9 -8 -7 -6 -5 -5 -5 -5 -4 -4 -3 -3 -3 -2 -1 --------- Run | Yrd Mat Mat Min Mat Fac Fac Fac Upp Upp Zhi Pro Fac Res Arm Lab Res Acc Machines Accessed 49 | . 4 3 1 5 1 4 3 . . 6 1 9 4 2 2 1 3 Terminals 27 | . 4 2 . 5 1 2 1 . . . 1 4 1 2 . 1 3 Fabricators 2 | . . . . . . 1 . . . . . . 1 . . . . Repair Stations 1 | . . . . . . . . . . . . 1 . . . . . Recycling Units 3 | . . 1 . . . . . . . . . 2 . . . . . Scanalyzers 2 | . . . . . . . 1 . . . . 1 . . . . . Garrison Access 5 | . . . . . . 1 1 . . . . 1 2 . . . . Total Hacks 141 | . 17 10 1 10 1 8 7 . . 19 1 27 5 3 19 3 10 Successful 78 | . 11 3 1 4 . 2 1 . . 19 1 12 2 . 19 2 1 Failed 63 | . 6 7 . 6 1 6 6 . . . . 15 3 3 . 1 9 Catastrophic 12 | . 1 . . . . . 1 . . . . 4 1 2 . . 3 Database Lockouts . | . . . . . . . . . . . . . . . . . . Manual 21 | . 5 3 . 5 1 . 1 . . . . 3 1 . 2 . . Terminals 75 | . 17 9 . 10 1 4 3 . . . 1 12 2 3 . 3 10 Fabricators 2 | . . . . . . 1 . . . . . . 1 . . . . Repair Stations 7 | . . . . . . . . . . . . 7 . . . . . Recycling Units 4 | . . 1 . . . . . . . . . 3 . . . . . Scanalyzers 5 | . . . . . . . 1 . . . . 4 . . . . . Garrison Access 9 | . . . . . . 3 3 . . . . 1 2 . . . . Terminal Hacks 62 | . 7 1 1 4 . 1 . . . 19 1 5 1 . 19 2 1 Record 28 | . . . . . . . . . . 7 1 . . . 19 . 1 Part Schematic 4 | . . . . . . . . . . 4 . . . . . . . Robot Analysis 4 | . . . . . . . . . . 4 . . . . . . . Prototype ID Bank 6 | . 1 . . 1 . . . . . 4 . . . . . . . Open Door 1 | . . . 1 . . . . . . . . . . . . . . Level Access Points 1 | . . . . . . . . . . . . . . . . 1 . Emergency Access Points 4 | . 1 . . 2 . . . . . . . 1 . . . . . Alert Level 3 | . 1 . . . . 1 . . . . . 1 . . . . . Unreport Threat 3 | . . 1 . . . . . . . . . 2 . . . . . Locate Traps 4 | . 3 . . . . . . . . . . 1 . . . . . Recall Reinforcements 1 | . . . . . . . . . . . . . 1 . . . . Registered Components 1 | . 1 . . . . . . . . . . . . . . . . Zone Layout 2 | . . . . 1 . . . . . . . . . . . 1 . Fabricator Hacks 2 | . . . . . . 1 . . . . . . 1 . . . . Network Status 1 | . . . . . . . . . . . . . 1 . . . . Build 1 | . . . . . . 1 . . . . . . . . . . . Repair Station Hacks 3 | . . . . . . . . . . . . 3 . . . . . Scan Component 2 | . . . . . . . . . . . . 2 . . . . . Repair 1 | . . . . . . . . . . . . 1 . . . . . Recycling Unit Hacks 2 | . . . . . . . . . . . . 2 . . . . . Report Inventory 2 | . . . . . . . . . . . . 2 . . . . . Scanalyzer 1 | . . . . . . . . . . . . 1 . . . . . Insert Component 1 | . . . . . . . . . . . . 1 . . . . . Garrison Access Hacks 1 | . . . . . . . . . . . . 1 . . . . . Seal Access 1 | . . . . . . . . . . . . 1 . . . . . Unauthorized Hacks 7 | . 4 2 . . . . 1 . . . . . . . . . . Terminals 6 | . 4 2 . . . . . . . . . . . . . . . Botnet 6 | . 4 2 . . . . . . . . . . . . . . . Fabricators . | . . . . . . . . . . . . . . . . . . Repair Stations . | . . . . . . . . . . . . . . . . . . Recycling Units . | . . . . . . . . . . . . . . . . . . Scanalyzers . | . . . . . . . . . . . . . . . . . . Garrison Access 1 | . . . . . . . 1 . . . . . . . . . . Jam 1 | . . . . . . . 1 . . . . . . . . . . Data Cores Recovered 1 | . . . . 1 . . . . . . . . . . . . . Used . | . . . . . . . . . . . . . . . . . . Hacking Detections 34 | . 4 3 . 5 . 3 3 . . . . 6 4 2 . 1 3 Full Trace Events 7 | . . 1 . . . 1 1 . . . . . . 1 . . 3 Feedback Events 1 | . . . . . . . 1 . . . . . . . . . . Corruption 1 | . . . . . . . 1 . . . . . . . . . . Feedback Blocked . | . . . . . . . . . . . . . . . . . . Robot Schematics Acquired . | . . . . . . . . . . . . . . . . . . Robots Built . | . . . . . . . . . . . . . . . . . . Authchips . | . . . . . . . . . . . . . . . . . . Time . | . . . . . . . . . . . . . . . . . . Total Robot Build Rating . | . . . . . . . . . . . . . . . . . . Part Schematics Acquired 4 | . . . . . . . . . . 4 . . . . . . . Parts Built 1 | . . . . . . 1 . . . . . . . . . . . Authchips . | . . . . . . . . . . . . . . . . . . Time 117 | . . . . . . 117 . . . . . . . . . . . Total Part Build Rating 7 | . . . . . . 7 . . . . . . . . . . . Parts Repaired 1 | . . . . . . . . . . . . 1 . . . . . Time 80 | . . . . . . . . . . . . 80 . . . . . Parts Recycled . | . . . . . . . . . . . . . . . . . . Recycled Matter . | . . . . . . . . . . . . . . . . . . Retrieved Matter . | . . . . . . . . . . . . . . . . . . Retrieved Components . | . . . . . . . . . . . . . . . . . . Parts Scanalyzed 1 | . . . . . . . . . . . . 1 . . . . . Part Schematics Acquired . | . . . . . . . . . . . . . . . . . . Parts Damaged . | . . . . . . . . . . . . . . . . . . Bothacking | -11 -10 -9 -9 -8 -7 -6 -5 -5 -5 -5 -4 -4 -3 -3 -3 -2 -1 ------------ Run | Yrd Mat Mat Min Mat Fac Fac Fac Upp Upp Zhi Pro Fac Res Arm Lab Res Acc Used RIF Installer . | . . . . . . . . . . . . . . . . . . Robots Hacked . | . . . . . . . . . . . . . . . . . . Non-combat . | . . . . . . . . . . . . . . . . . . Combat . | . . . . . . . . . . . . . . . . . . Robot Hacks Applied . | . . . . . . . . . . . . . . . . . . Relay Couplers Released . | . . . . . . . . . . . . . . . . . . Fabnet Peak Effective % . | . . . . . . . . . . . . . . . . . . Robots Rewired . | . . . . . . . . . . . . . . . . . . Allies Hacked . | . . . . . . . . . . . . . . . . . . Hacks Repelled . | . . . . . . . . . . . . . . . . . . Allies | -11 -10 -9 -9 -8 -7 -6 -5 -5 -5 -5 -4 -4 -3 -3 -3 -2 -1 -------- Run | Yrd Mat Mat Min Mat Fac Fac Fac Upp Upp Zhi Pro Fac Res Arm Lab Res Acc Total Allies 1 | . . . 1 . . . . . . . . . . . . . . Largest Group 1 | . . . 1 1 . . . . . . . . . . . . . Highest-Rated Group 31 | . . . 31 31 . . . . . . . . . . . . . Highest-Rated Ally 31 | . . . 31 31 . . . . . . . . . . . . . Total Orders . | . . . . . . . . . . . . . . . . . . Ally Attacks 18 | . . . . 18 . . . . . . . . . . . . . Total Damage 167 | . . . . 167 . . . . . . . . . . . . . Kills 1 | . . . . 1 . . . . . . . . . . . . . Allies Corrupted . | . . . . . . . . . . . . . . . . . . Allies Melted . | . . . . . . . . . . . . . . . . . . Intel | -11 -10 -9 -9 -8 -7 -6 -5 -5 -5 -5 -4 -4 -3 -3 -3 -2 -1 ------- Run | Yrd Mat Mat Min Mat Fac Fac Fac Upp Upp Zhi Pro Fac Res Arm Lab Res Acc Robot Analysis Total 4 | . . . . . . . . . . 4 . . . . . . . Derelict Logs Recovered 3 | . . . . . . . . . 2 . 1 . . . . . . Drone Launches . | . . . . . . . . . . . . . . . . . . Drone Recoveries . | . . . . . . . . . . . . . . . . . . Exploration | -11 -10 -9 -9 -8 -7 -6 -5 -5 -5 -5 -4 -4 -3 -3 -3 -2 -1 ------------- Run | Yrd Mat Mat Min Mat Fac Fac Fac Upp Upp Zhi Pro Fac Res Arm Lab Res Acc Turns Passed 6527 | 91 477 181 433 641 741 1003 505 240 339 78 259 478 169 419 61 119 293 Spaces Moved 6409 | 61 210 80 195 247 371 665 383 233 376 158 294 893 279 1079 110 193 582 Core 494 | 16 . . . . . . . . . . . . . 26 110 76 266 Treads 1088 | 45 210 80 195 247 311 . . . . . . . . . . . . Legs . | . . . . . . . . . . . . . . . . . . Wheels . | . . . . . . . . . . . . . . . . . . Hover 4558 | . . . . . 60 665 383 233 376 158 294 893 279 1053 . 117 47 Flight 269 | . . . . . . . . . . . . . . . . . 269 Fastest Speed 13 | 50 160 160 160 160 92 88 84 84 16 34 16 30 13 13 50 50 45 Average Speed 74 | 134 160 160 160 232 155 88 84 84 76 35 70 30 38 27 50 56 48 Slowest Speed 320 | 160 160 160 160 240 320 88 84 84 84 84 84 30 76 80 50 60 60 Overloaded Moves 502 | . . . . . . . . . 41 . 76 . 38 347 . . . Propulsion Burnouts 1 | . . . . . . . . . . . . . . 1 . . . Robots Hopped . | . . . . . . . . . . . . . . . . . . Cave-ins Triggered . | . . . . . . . . . . . . . . . . . . Teleports 1 | . . . . . . . . . . . . . . 1 . . . Exploration Rate (%) 38 | 5 50 12 54 46 15 16 13 44 60 62 67 29 10 80 96 9 28 Regions Visited 17 Branch Regions 7 Pre-discovered Areas 3 | . . . . . . . . . . 3 . . . . . . . Known Exits Taken 3 | . . . . . . . . . . . . 1 1 . . 1 . Unknown Exits Taken 14 | 1 1 1 1 1 1 1 1 1 1 1 1 . . 1 1 . . Scrap Searched 4 | . . . 1 . . . . 1 . . 2 . . . . . . Spaces Dug 22 | . . . . . . . . . 4 . 4 6 4 4 . . . Terrain Destroyed 234 | . . 2 . 1 10 9 49 1 29 . 33 27 8 65 . . . Melee . | . . . . . . . . . . . . . . . . . . Projectile 117 | . . 2 . 1 2 9 12 1 14 . 33 15 8 20 . . . AOE 117 | . . . . . 8 . 37 . 15 . . 12 . 45 . . . Terrain Rammed . | . . . . . . . . . . . . . . . . . . Walls Destroyed . | . . . . . . . . . . . . . . . . . . Machines Disabled . | . . . . . . . . . . . . . . . . . . Actions | -11 -10 -9 -9 -8 -7 -6 -5 -5 -5 -5 -4 -4 -3 -3 -3 -2 -1 --------- Run | Yrd Mat Mat Min Mat Fac Fac Fac Upp Upp Zhi Pro Fac Res Arm Lab Res Acc Total 7849 | 68 348 118 300 285 514 1054 538 273 402 180 313 1061 316 1169 115 203 592 Wait 1086 | . 133 20 93 16 79 365 139 38 15 . 2 131 12 32 3 5 3 Move 6392 | 60 209 79 194 246 370 664 382 232 375 157 293 892 278 1078 109 192 582 Hop . | . . . . . . . . . . . . . . . . . . Pick Up 44 | 2 1 8 2 4 8 . 3 . . 3 2 2 4 3 . 2 . Fast Attach 51 | 5 2 . 2 3 13 1 1 . . 9 . 4 1 4 2 2 2 Attach 17 | 1 . 1 1 1 1 1 1 . . . . 2 3 4 . . 1 Detach 10 | . 1 . . . 3 . . . . . . 2 2 2 . . . Swap 22 | . 1 4 . 2 5 . . 1 2 1 . 4 . 2 . . . Drop 54 | . . . 1 2 25 . 1 . . 10 2 3 3 4 1 2 . Fire 143 | . 1 6 7 11 10 11 11 2 10 . 14 21 13 26 . . . Melee . | . . . . . . . . . . . . . . . . . . Ram 7 | . . . . . . . . . . . . . . 3 . . 4 Kick . | . . . . . . . . . . . . . . . . . . Crush . | . . . . . . . . . . . . . . . . . . Escape Stasis 23 | . . . . . . 12 . . . . . . . 11 . . . Rewire . | . . . . . . . . . . . . . . . . . . Trap . | . . . . . . . . . . . . . . . . . . Miscellaneous . | . . . . . . . . . . . . . . . . . . Route ------- -11/Scrapyard -10/Materials (discovered 2 exits: *Mat x2) -9/Materials -9/Mines -8/Materials -7/Factory (discovered 3 exits: *Fac x2 / [*Sto]) -6/Factory -5/Factory -5/Upper Caves -5/Upper Caves (discovered 2 exits: Fac / *Zhi) -5/Zhirov -4/Proximity Caves -4/Factory -3/Research -3/Armory (discovered 2 exits: *Res / *Lab) -3/Lab -2/Research (discovered 3 exits: *Acc x3) -1/Access History --------- Turn | Location | Event 19 | -11/Scrapyard | Discovered new exit (range 15) 92 | -11/Scrapyard | Entered Materials 224 | -10/Materials | Discovered new exit (range 11) 308 | -10/Materials | Build established: Mutant 540 | -10/Materials | Discovered new exit (range 17) 569 | -10/Materials | Entered another Materials area 569 | -9/Materials | Evolved 2 slots: Utility x1, Weapon x1 723 | -9/Materials | Discovered new exit (range 13) 750 | -9/Materials | Entered Mines 857 | -9/Mines | Build established: Skirmisher 981 | -9/Mines | Met a Derelict who couldn't figure out how to use a Trap Extractor 1125 | -9/Mines | Received a Rocket Launcher from a helpful Derelict 1148 | -9/Mines | Assembled infested the area 1176 | -9/Mines | Discovered new exit (range 5) 1178 | -9/Mines | Escorted by a lone wolf Derelict 1183 | -9/Mines | Entered Materials 1183 | -8/Materials | Accompanied by 1 ally 1183 | -8/Materials | Evolved 2 slots: Utility x1, Weapon x1 1249 | -8/Materials | Garrison activated, responded to threat 1611 | -8/Materials | Build established: Tank 1660 | -8/Materials | Met 7R-MNS 1793 | -8/Materials | Discovered new exit (range 8) 1824 | -8/Materials | Entered Factory 1824 | -7/Factory | Evolved 2 slots: Propulsion x1, Utility x1 1825 | -7/Factory | Caught up to 7R-MNS 1845 | -7/Factory | Discovered new exit (range 18) 1885 | -7/Factory | Discovered new exit (range 16) 2372 | -7/Factory | Cargo convoy interrupted 2412 | -7/Factory | Found Prototype Launcher 2413 | -7/Factory | Identified Tesla Bomb Launcher 2519 | -7/Factory | Discovered new exit (range 5) 2565 | -7/Factory | Entered another Factory area 2565 | -6/Factory | Evolved 2 slots: Propulsion x1, Utility x1 2566 | -6/Factory | Caught up to 7R-MNS 2689 | -6/Factory | Fabricated Adv. Target Analyzer (x1) 2996 | -6/Factory | Build established: Gunner 3473 | -6/Factory | Spotted B-75 Beast 3505 | -6/Factory | Garrison activated, responded to threat 3541 | -6/Factory | Discovered new exit (range 7) 3568 | -6/Factory | Entered another Factory area 3568 | -5/Factory | Evolved 2 slots: Propulsion x1, Utility x1 3569 | -5/Factory | Caught up to 7R-MNS 3681 | -5/Factory | Discovered new exit (range 20) 3911 | -5/Factory | Attacked by 7R-MNS 3977 | -5/Factory | Spotted B-75 Beast 4073 | -5/Factory | Entered Upper Caves 4274 | -5/Upper Caves | Discovered new exit (range 9) 4313 | -5/Upper Caves | Entered another Upper Caves area 4313 | -5/Upper Caves | Discovered new exit (range 9) 4315 | -5/Upper Caves | Encountered a Warlord checkpoint 4374 | -5/Upper Caves | Ambushed by wild Derelicts 4622 | -5/Upper Caves | Discovered new exit (range 19) 4643 | -5/Upper Caves | Learned Factory machine intel 4652 | -5/Upper Caves | Entered Zhirov 4654 | -5/Zhirov | Discovered new exit (range 3) 4661 | -5/Zhirov | Met Zhirov 4668 | -5/Zhirov | Learned location of Quarantine (-2) 4668 | -5/Zhirov | Learned location of Testing (-3) 4668 | -5/Zhirov | Learned location of Command (-1) 4673 | -5/Zhirov | Zhirov requested help retrieving the SGEMP Prototype 4679 | -5/Zhirov | Found Alien Artifact 4679 | -5/Zhirov | Identified Integrated Reactor 4679 | -5/Zhirov | Installed Integrated Reactor, increased core energy generation (+10) 4685 | -5/Zhirov | Found Alien Artifact 4730 | -5/Zhirov | Entered Proximity Caves 4733 | -4/Proximity Caves | Spotter reported a threat 4737 | -4/Proximity Caves | Spotted B-86 Titan 4986 | -4/Proximity Caves | Discovered new exit (range 13) 4989 | -4/Proximity Caves | Entered Factory 4989 | -4/Factory | Evolved 2 slots: Propulsion x1, Utility x1 4990 | -4/Factory | Loaded intel: 256 machine locations 5282 | -4/Factory | Repaired Antimatter Cannon 5456 | -4/Factory | Discovered new exit (range 18) 5466 | -4/Factory | Build established: Scout 5467 | -4/Factory | Identified exit to Research 5467 | -4/Factory | Entered Research 5467 | -3/Research | Evolved 2 slots: Power x1, Propulsion x1 5468 | -3/Research | Identified exit to Armory 5601 | -3/Research | Garrison activated, responded to threat 5636 | -3/Research | Entered Armory 5947 | -3/Armory | Discovered new exit (range 4) 5993 | -3/Armory | Spotted B-86 Titan 6006 | -3/Armory | Lost 8 parts (4n3u1w) 6050 | -3/Armory | Core integrity fell below 50% 6050 | -3/Armory | Identified Transdimensional Reconstructor 6050 | -3/Armory | Warped through subspace to slip node 6050 | -3/Armory | Discovered new exit (range 1) 6055 | -3/Armory | Entered Lab 6055 | -3/Lab | Discovered new exit (range 9) 6062 | -3/Lab | Unable to decrypt terminal 6062 | -3/Lab | Opened the door to a hidden lab 6062 | -3/Lab | Detected by scanners 6063 | -3/Lab | Gained access to the hidden lab's interior 6071 | -3/Lab | Lost 8 parts (3n3u2w) 6077 | -3/Lab | Confronted by A5 6078 | -3/Lab | Unable to decrypt terminal 6085 | -3/Lab | Found Prototype Energy Cannon 6085 | -3/Lab | Identified Potential Cannon 6094 | -3/Lab | Found Prototype Hackware 6094 | -3/Lab | Identified Deep Network Scanner 6109 | -3/Lab | Unable to decrypt terminal 6113 | -3/Lab | Disabled Active System Cloaker 6116 | -3/Lab | Entered Research 6116 | -2/Research | Evolved 2 slots: Utility x2 6130 | -2/Research | Identified exit to Access 6235 | -2/Research | Entered Access 6235 | -1/Access | Evolved 2 slots: Propulsion x1, Weapon x1 6353 | -1/Access | Core integrity fell below 50% 6383 | -1/Access | Spotted B-99 Colossus 6484 | -1/Access | Core integrity fell below 20% 6485 | -1/Access | Search patrols dispatched 6519 | -1/Access | Build established: Mutant 6528 | -1/Access | Destroyed by H-81 Overseer with Heavy Linear Accelerator Last Messages --------------- 06445_ Slammed into S-43 Plague. 06446_ Impulse Thruster Array destroyed. 06451_ System corrupted: Matter fused (-10). 06462_ S-43 Plague destroyed. 06479_ Connecting with Terminal... 06479_ ALERT: Suspicious activity at Terminal A004. Dispatching Investigation squad. 06485_ ALERT: Heightened foreign activity detected, multiple search patrols dispatched. 06485_ ALERT: Suspicious intruders detected, dispatching Cutter reinforcements to area. 06491_ System corrupted: Matter fused (-6). 06507_ Knocked back. 06509_ Adv. Heavy Siege Treads destroyed. 06509_ Knocked back. 06512_ Slug penetrates Wall. 06516_ Knocked back. 06521_ 5P1W6#H35D0D8QX05S98